bitfinex/quotes_ETHUSD_20250625
["timestamp","ask_amount","ask_price","bid_price","bid_amount"]
[1750894334887,2.89845532,2415.1,2414.7,0.88198268]
[1750894335999,0.2064,2415.2,2414.7,0.88198268]
[1750894336210,0.9915185,2415.1,2414.8,3.69064651]
[1750894336414,10.2064,2415.2,2414.8,3.69064651]
[1750894336579,0.99150081,2415.1,2414.8,0.7919]
[1750894336900,12.89831856,2415.2,2414.9,0.2064]
[1750894337105,0.99150725,2415.1,2414.9,0.2064]
[1750894337410,2.0336,2415.3,2414.9,3.10506704]
[1750894337411,11.9464,2415.3,2414.9,3.10506704]
[1750894337610,0.99147801,2415.2,2415.0,2.89848422]
[1750894337902,11.74,2415.3,2415.0,3.10488422]
[1750894338103,0.99145983,2415.2,2415.0,0.2064]
[1750894338409,11.74,2415.3,2415.0,3.10492825]
[1750894340107,14.63821181,2415.3,2415.0,0.2064]
[1750894341421,14.63821181,2415.3,2414.8,3.69063799]
[1750894341422,14.63828951,2415.3,2414.8,3.69061798]
[1750894341577,14.84468951,2415.3,2414.9,0.2064]
[1750894342585,11.9464,2415.3,2414.9,0.2064]
[1750894342781,11.9464,2415.3,2414.9,3.10504]
[1750894343378,11.9464,2415.3,2415.0,2.89854733]
[1750894343575,11.9464,2415.3,2414.9,3.10500577]
[1750894344174,14.84466285,2415.3,2414.9,0.2064]
[1750894344803,11.9464,2415.3,2414.9,3.10505967]
[1750894346612,11.9464,2415.3,2414.9,0.2064]
[1750894346613,2.89846221,2415.1,2414.9,0.2064]
[1750894346816,2.89855072,2415.0,2414.9,0.2064]
[1750894347112,2.89855072,2415.0,2414.6,0.2064]
[1750894347113,2.8987981,2414.8,2414.6,0.2064]
[1750894347820,2.89891083,2414.7,2414.6,0.2064]
[1750894347983,2.89906018,2414.6,2414.3,0.2064]
[1750894348188,3.10536031,2414.7,2414.3,0.2064]
[1750894349202,0.2064,2414.7,2414.3,3.10578474]
[1750894349419,0.2064,2414.7,2414.4,2.89926524]
[1750894349578,0.2064,2414.7,2414.3,3.10573568]
[1750894349985,0.2064,2414.7,2414.4,2.89925263]
[1750894350418,0.2064,2414.7,2414.3,3.10573555]
[1750894350994,0.2064,2414.7,2414.3,0.2064]
[1750894352437,3.10532393,2414.7,2414.3,0.2064]
[1750894352799,2.89904429,2414.6,2414.3,0.2064]
[1750894353106,2.89904429,2414.6,2414.2,0.8266]
[1750894353107,2.8993685,2414.4,2414.1,0.2064]
[1750894353496,0.2936,2414.5,2414.1,0.2064]
[1750894353497,4.63939238,2414.3,2414.1,0.2064]
[1750894353892,1.74,2414.3,2414.1,0.2064]
[1750894354608,6.736,2414.6,2414.1,0.2064]
[1750894354609,1.74,2414.6,2414.5,2.89912624]
[1750894355121,1.74,2414.6,2414.5,3.91572624]
[1750894355323,1.74,2414.6,2414.5,1.0166]
[1750894358211,10.0,2414.8,2414.5,1.0166]
[1750894358410,1.74,2414.7,2414.5,1.0166]
[1750894359828,10.2064,2414.9,2414.5,3.91574662]
[1750894360030,1.74,2414.7,2414.6,2.89902615]
[1750894360236,0.2064,2415.2,2414.8,0.2064]
[1750894360433,4.03424499,2415.4,2414.9,3.71549602]
[1750894360434,1.74,2415.0,2414.9,3.71549602]
[1750894360634,1.74,2415.0,2414.9,0.8169]
[1750894360826,1.74,2415.0,2414.9,1.0233]
[1750894361346,1.74,2415.0,2414.9,3.92197075]
[1750894361637,1.74,2415.0,2414.9,1.0233]
[1750894362332,1.74,2415.0,2414.9,3.92197075]
[1750894363035,1.74,2415.0,2414.9,4.60405775]
[1750894365739,5.68704499,2415.4,2415.2,2.89831069]
[1750894365943,0.2064,2415.7,2415.2,0.7577]
[1750894366116,1.74,2415.7,2415.6,2.8977263]
[1750894366315,1.74,2415.7,2415.6,3.8844263]
[1750894370039,1.74,2415.7,2415.6,0.2064]
[1750894373350,2.89790306,2415.6,2415.0,2.89843768]
[1750894373552,2.89790306,2415.6,2415.2,0.2064]
[1750894373721,2.89796669,2415.5,2415.2,0.2064]
[1750894374130,2.89787415,2415.6,2415.2,0.2064]
[1750894374337,4.84417246,2415.7,2415.2,3.10469716]
[1750894375521,1.9464,2415.7,2415.2,0.2064]
[1750894375721,1.9464,2415.7,2415.2,3.92370955]
[1750894375933,1.9464,2415.7,2415.3,2.8981907]
[1750894377339,1.9464,2415.7,2415.4,2.89803492]
[1750894378248,1.9464,2415.7,2415.6,2.89783076]
[1750894378448,1.74,2415.7,2415.6,2.89783076]
[1750894378831,1.74,2415.7,2415.5,2.89792692]
[1750894379230,1.74,2415.7,2415.4,3.10440961]
[1750894379430,1.74,2415.7,2415.4,3.78656538]
[1750894379631,1.74,2415.7,2415.4,0.88855577]
[1750894380052,1.74,2415.7,2415.4,3.78662054]
[1750894380834,1.74,2415.7,2415.4,0.88855577]
[1750894382055,1.74,2415.7,2415.4,3.78653913]
[1750894384747,1.74,2415.7,2415.5,2.8979373]
[1750894385655,1.74,2415.7,2415.4,3.78657451]
[1750894386248,1.74,2415.7,2415.4,0.88855577]
[1750894386571,2.89820206,2415.3,2414.9,0.7665]
[1750894386741,0.2064,2415.5,2415.0,0.2064]
[1750894387057,2.89816436,2415.4,2415.0,0.2064]
[1750894388157,3.10439651,2415.5,2415.0,3.10493322]
[1750894388463,13.10439651,2415.5,2415.0,0.2064]
[1750894388665,10.2064,2415.5,2415.0,3.10493446]
[1750894388957,10.2064,2415.5,2415.1,2.89842569]
[1750894389263,10.2064,2415.5,2415.0,3.70520616]
[1750894389761,10.2064,2415.5,2415.1,2.89839692]
[1750894393864,11.19710472,2415.5,2415.0,4.52705717]
[1750894394055,14.09505638,2415.5,2415.0,1.0282]
[1750894394236,10.2064,2415.5,2415.0,1.0282]
[1750894394437,10.2064,2415.5,2415.1,2.89842388]
[1750894395267,11.19717763,2415.5,2415.1,2.89842388]
[1750894396676,14.09515514,2415.5,2415.0,3.92669007]
[1750894396842,13.10437751,2415.5,2415.0,3.92669007]
[1750894397243,2.89812774,2415.4,2415.0,1.0282]
[1750894397444,0.99090548,2415.4,2415.0,0.2064]
[1750894397652,0.99090548,2415.4,2415.0,3.10494591]
[1750894398074,0.99090548,2415.4,2415.1,3.70931901]
[1750894398264,10.2064,2415.5,2415.1,3.70931901]
[1750894398265,10.99085318,2415.5,2415.3,0.2064]
[1750894400266,1.739,2415.4,2415.3,0.2064]
[1750894400677,1.739,2415.4,2415.3,3.1045907]
[1750894401274,10.0,2415.5,2415.4,2.89807071]
[1750894401615,1.739,2415.6,2415.5,3.67065073]
[1750894402074,1.739,2415.6,2415.5,0.7727]
[1750894403484,1.739,2415.6,2415.5,3.67065073]
[1750894405255,9.929,2415.8,2415.5,3.67065073]
[1750894405256,9.929,2415.8,2415.7,2.8977108]
[1750894405463,21.668,2415.8,2415.7,2.8977108]
[1750894407557,11.668,2415.8,2415.7,2.8977108]
[1750894408363,1.739,2415.8,2415.7,2.8977108]
[1750894409284,1.739,2416.0,2415.8,2.89759086]
[1750894409496,1.739,2416.0,2415.9,2.89747092]
[1750894410370,1.739,2416.0,2415.7,0.88386315]
[1750894410771,1.8262,2416.0,2415.7,0.2064]
[1750894410973,2.89759086,2415.8,2415.3,0.7809]
[1750894411173,2.89777911,2415.7,2415.6,0.2064]
[1750894412192,8.5572,2416.0,2415.6,0.2064]
[1750894412390,2.89749258,2415.9,2415.6,0.2064]
[1750894412594,2.89760327,2415.8,2415.6,0.2064]
[1750894413091,2.8977108,2415.7,2415.6,0.2064]
[1750894413479,2.89812411,2415.4,2415.1,0.816]
[1750894413699,2.89801717,2415.5,2415.3,0.2064]
[1750894414195,10.0872,2415.9,2415.1,0.7535]
[1750894414392,1.9454,2416.1,2415.7,0.2064]
[1750894414563,0.99027945,2416.0,2415.7,0.2064]
[1750894414995,0.99027945,2416.0,2415.2,0.81532249]
[1750894414996,1.07747945,2415.9,2415.2,0.81532249]
[1750894415178,1.07747945,2415.9,2415.1,0.7535]
[1750894415179,15.32740436,2415.8,2415.3,0.2064]
[1750894415388,0.0872,2415.6,2415.1,0.7535]
[1750894415562,3.02287945,2415.6,2415.1,0.9599]
[1750894415763,2.0326,2415.6,2415.1,0.9599]
[1750894416008,2.89819532,2415.3,2415.1,0.2064]
[1750894416220,2.89812731,2415.4,2415.1,0.2064]
[1750894416498,2.89795791,2415.5,2415.1,0.2064]
[1750894416997,2.89807236,2415.4,2415.1,0.2064]
[1750894417896,2.89799113,2415.5,2415.1,0.2064]
[1750894418896,2.8981411,2415.4,2415.1,0.2064]
[1750894419062,3.02299778,2415.6,2415.1,0.2064]
[1750894419258,5.92088195,2415.6,2415.1,3.10481702]
[1750894419494,3.02299778,2415.6,2415.2,2.89826351]
[1750894419697,3.02299778,2415.6,2415.3,2.89810503]
[1750894419895,2.0326,2415.6,2415.3,2.89810503]
[1750894421795,2.0326,2415.6,2415.2,2.89824864]
[1750894422699,2.0326,2415.6,2415.3,2.89816846]
[1750894423704,2.0326,2415.6,2415.1,0.2064]
[1750894424004,2.0326,2415.6,2415.2,2.89829556]
[1750894424489,2.0326,2415.6,2415.1,0.2064]
[1750894424698,0.990748,2415.5,2415.1,3.10477478]
[1750894424892,0.990748,2415.5,2415.2,2.89830627]
[1750894425095,2.0326,2415.6,2415.2,2.89830627]
[1750894425904,4.93054562,2415.6,2415.1,0.2064]
[1750894426093,2.89808353,2415.4,2415.1,0.2064]
[1750894426607,2.0326,2415.6,2415.1,0.2064]
[1750894426773,4.93048757,2415.6,2415.1,3.10474772]
[1750894427178,3.02332189,2415.6,2415.2,2.89829523]
[1750894427379,2.89827124,2415.3,2414.9,0.8052]
[1750894427583,7.39972491,2415.5,2414.8,2.898713]
[1750894427584,4.09532602,2415.4,2415.0,0.2064]
[1750894427796,2.8982101,2415.3,2415.0,0.2064]
[1750894427972,0.2064,2415.4,2415.0,0.2064]
[1750894428174,1.19723962,2415.4,2415.0,3.41535256]
[1750894428397,0.2064,2415.4,2415.0,3.41535256]
[1750894431595,0.2064,2415.4,2415.1,2.89842338]
[1750894431985,0.2064,2415.4,2415.0,3.41539398]
[1750894432185,3.10447507,2415.4,2415.0,0.51690475]
[1750894432385,3.10447507,2415.4,2415.0,0.2064]
[1750894433090,2.89820364,2415.3,2415.0,0.2064]
[1750894433291,2.89836863,2415.2,2415.0,0.2064]
[1750894434617,0.0872,2415.3,2415.0,0.2064]
[1750894434618,2.98540183,2415.3,2415.0,0.2064]
[1750894434806,0.0872,2415.3,2415.0,0.2064]
[1750894435111,2.98540586,2415.3,2415.0,0.2064]
[1750894436317,1.738,2415.2,2415.0,0.2064]
[1750894437293,1.738,2415.2,2415.0,3.10494677]
[1750894438314,1.738,2415.2,2415.1,2.8984307]
[1750894439389,1.738,2415.2,2415.0,3.91649501]
[1750894439615,1.738,2415.2,2415.1,3.5799397]
[1750894440725,7.72253791,2415.5,2415.1,3.5799397]
[1750894440726,0.99053791,2415.5,2415.3,2.8981907]
[1750894440922,0.99053791,2415.5,2415.2,0.7697]
[1750894440923,2.89793302,2415.6,2415.2,0.7697]
[1750894441214,2.98513302,2415.6,2415.2,0.7697]
[1750894441783,2.98513302,2415.6,2415.0,0.8308]
[1750894441987,2.8979955,2415.5,2415.0,3.72928922]
[1750894442187,2.8979955,2415.5,2415.0,0.8308]
[1750894442419,2.98506583,2415.6,2415.0,3.72932523]
[1750894442629,2.98506583,2415.6,2415.1,2.89838297]
[1750894443522,0.99135503,2415.5,2415.1,2.89838297]
[1750894443716,0.99135503,2415.5,2415.0,1.87693252]
[1750894443717,3.88931668,2415.5,2415.0,4.77543418]
[1750894444025,3.88931668,2415.5,2415.0,1.87693252]
[1750894444320,5.62731668,2415.5,2415.0,1.87693252]
[1750894444487,4.63596165,2415.5,2415.0,1.87693252]
[1750894444688,0.99190132,2415.4,2415.0,1.87693252]
[1750894444888,2.89816125,2415.4,2415.0,1.87693252]
[1750894445621,2.89821282,2415.3,2415.0,1.87693252]
[1750894445823,2.89814862,2415.4,2415.0,1.87693252]
[1750894446334,2.89819291,2415.3,2415.0,1.87693252]
[1750894446528,2.89836896,2415.2,2414.7,2.89885265]
[1750894446694,2.89836896,2415.2,2414.8,0.8209]
[1750894447525,3.89019887,2415.3,2414.8,3.7196816]
[1750894447722,2.89824062,2415.3,2414.8,3.7196816]
[1750894448024,4.63597617,2415.5,2415.0,2.89849401]
[1750894448025,1.738,2415.5,2415.0,2.89849401]
[1750894448324,1.738,2415.5,2415.1,2.89839592]
[1750894449136,2.98513213,2415.6,2415.2,2.89821066]
[1750894449137,1.737,2415.4,2415.2,2.89821066]
[1750894449497,1.737,2415.4,2415.1,3.66586924]
[1750894450201,1.737,2415.4,2415.1,0.7675]
[1750894450408,1.737,2415.4,2415.1,1.4239637]
[1750894450926,1.737,2415.4,2415.2,0.2064]
[1750894451135,1.737,2415.4,2415.1,0.7675]
[1750894451294,1.737,2415.4,2414.7,2.89886498]
[1750894451495,2.89844126,2415.1,2414.8,0.2064]
[1750894452117,3.8904253,2415.2,2414.8,0.2064]
[1750894452337,2.89837189,2415.2,2414.8,0.2064]
[1750894452538,2.89846009,2415.1,2414.8,0.2064]
[1750894453331,2.89837492,2415.2,2414.8,0.2064]
[1750894454231,2.89857045,2415.0,2414.8,0.2064]
[1750894454533,5.62760582,2414.9,2414.6,0.2064]
[1750894454739,2.89891083,2414.7,2414.3,0.8232]
[1750894454902,3.10531083,2414.7,2414.3,1.0296]
[1750894455230,0.2064,2414.7,2414.4,2.89926126]
[1750894455433,0.2064,2414.7,2414.3,1.0296]
[1750894455638,0.2064,2414.7,2414.3,1.4698412]
[1750894455839,0.2064,2414.7,2414.3,4.3691705]
[1750894456405,0.2064,2414.7,2414.4,2.89922906]
[1750894456610,0.2064,2414.7,2414.5,2.8991388]
[1750894456811,0.2064,2414.7,2414.4,2.89921116]
[1750894457114,0.2064,2414.7,2414.4,3.67338917]
[1750894457441,0.2064,2414.7,2414.4,0.77417801]
[1750894457658,0.2064,2414.7,2414.3,4.36920867]
[1750894458006,0.2064,2414.7,2414.5,2.89913212]
[1750894458209,0.2064,2415.4,2414.7,0.7617]
[1750894458445,3.10453838,2415.4,2415.0,0.2064]
[1750894458742,0.6159177,2415.4,2415.0,0.2064]
[1750894459040,10.6159177,2415.4,2415.0,0.2064]
[1750894459236,10.6159177,2415.4,2415.0,3.10494071]
[1750894459622,10.6159177,2415.4,2415.0,0.2064]
[1750894459939,10.6159177,2415.4,2415.0,3.10493789]
[1750894460143,0.6159177,2415.4,2415.0,3.10493789]
[1750894460343,0.6159177,2415.4,2415.0,0.2064]
[1750894460507,2.3539177,2415.4,2415.0,0.2064]
[1750894460712,3.34461103,2415.4,2415.0,0.2064]
[1750894461040,2.3539177,2415.4,2415.0,3.10493992]
[1750894461239,1.9444,2415.4,2415.0,3.90383992]
[1750894461550,2.93510913,2415.4,2415.0,3.90383992]
[1750894461945,1.9444,2415.4,2415.0,3.90383992]
[1750894463047,2.93510341,2415.4,2415.0,3.90383992]
[1750894463620,2.93510341,2415.4,2415.0,1.0053]
[1750894464312,2.93510341,2415.4,2415.0,3.90381471]
[1750894464615,2.98547863,2415.3,2415.0,0.2064]
[1750894465030,3.97625268,2415.3,2414.7,3.66741274]
[1750894465233,4.18265268,2415.3,2414.8,0.86304369]
[1750894465443,1.28437405,2415.3,2414.8,3.76181378]
[1750894465747,0.2936,2415.3,2414.8,3.76181378]
[1750894466316,0.2936,2415.3,2414.9,2.89866086]
[1750894467325,0.2936,2415.3,2414.8,3.76177562]
[1750894467738,0.2936,2415.3,2414.8,0.86304369]
[1750894467739,3.19182211,2415.3,2414.8,0.86304369]
[1750894467949,3.19182211,2415.3,2414.8,3.10518866]
[1750894468125,2.89831435,2415.2,2414.8,0.2064]
[1750894468950,3.88919441,2415.2,2414.8,0.2064]
[1750894469740,2.89837777,2415.2,2414.8,0.2064]
[1750894470537,3.19185208,2415.3,2414.8,0.2064]
[1750894470743,3.19185208,2415.3,2414.8,3.10513345]
[1750894470953,1.2843301,2415.3,2414.8,3.10513345]
[1750894471257,1.2843301,2415.3,2414.9,2.89860823]
[1750894472262,4.18253837,2415.3,2414.8,3.10513088]
[1750894473064,3.19180827,2415.3,2414.8,0.2064]
[1750894474462,2.89831929,2415.2,2414.8,0.2064]
[1750894474851,10.0872,2415.3,2414.5,0.8097]
[1750894475066,2.8985859,2415.0,2414.6,0.2064]
[1750894475563,4.09592445,2415.1,2414.6,0.2064]
[1750894475766,4.09592445,2415.1,2414.6,3.1054005]
[1750894476067,2.89860721,2415.0,2414.6,0.2064]
[1750894476272,1.738,2414.9,2414.6,1.27181865]
[1750894477477,1.738,2414.9,2414.6,0.2064]
[1750894478864,4.63669241,2414.9,2414.6,0.2064]
[1750894479848,1.738,2414.9,2414.6,0.2064]
[1750894480483,1.738,2414.9,2414.6,3.10540276]
[1750894481645,1.738,2414.9,2414.7,2.89883947]
[1750894481859,1.738,2414.9,2414.7,3.29033342]
[1750894483270,0.0872,2415.3,2414.8,0.7556]
[1750894483439,0.99112744,2415.4,2415.0,0.7556]
[1750894483641,1.739,2415.5,2415.2,3.10469829]
[1750894484466,1.739,2415.5,2415.2,0.2064]
[1750894484966,14.63696611,2415.5,2415.2,0.2064]
[1750894485168,1.739,2415.5,2415.2,0.2064]
[1750894485469,12.73008309,2415.5,2415.2,0.2064]
[1750894485767,1.739,2415.5,2415.2,0.2064]
[1750894486068,2.73008313,2415.5,2415.2,0.2064]
[1750894486264,2.73008313,2415.5,2415.2,3.10470296]
[1750894486459,2.73018731,2415.5,2415.2,3.10470296]
[1750894486974,2.73018731,2415.5,2415.2,0.2064]
[1750894487339,1.739,2415.5,2415.2,0.2064]
[1750894487565,1.739,2415.5,2415.2,3.10464222]
[1750894487770,2.73028041,2415.5,2415.2,3.10464222]
[1750894488071,1.739,2415.5,2415.2,3.10464222]
[1750894491071,1.739,2415.5,2415.2,0.2064]
[1750894491475,11.739,2415.5,2415.2,0.2064]
[1750894491697,5.62794216,2415.5,2415.2,0.2064]
[1750894491841,1.739,2415.5,2415.2,0.2064]
[1750894492047,11.739,2415.5,2415.2,3.1047041]
[1750894492989,0.2064,2415.6,2415.4,2.89807071]
[1750894493188,1.739,2415.6,2415.4,3.10447071]
[1750894493369,2.72984205,2415.6,2415.4,3.10447071]
[1750894493692,1.739,2415.6,2415.4,3.10447071]
[1750894493862,1.739,2415.6,2415.4,0.2064]
[1750894494063,1.739,2415.6,2415.4,0.95272201]
[1750894494768,11.739,2415.6,2415.4,0.95272201]
[1750894495664,14.636835,2415.6,2415.4,0.95272201]
[1750894495865,14.636835,2415.6,2415.4,0.2064]
[1750894496099,10.0,2415.5,2415.4,0.2064]
[1750894496788,12.89795073,2415.5,2415.4,0.2064]
[1750894497600,10.0,2415.5,2415.4,0.2064]
[1750894499663,9.933,2416.0,2415.3,0.7845]
[1750894499892,1.739,2416.2,2415.4,6.731]
[1750894500093,1.739,2416.2,2416.0,2.8972334]
[1750894500286,1.739,2416.2,2415.9,3.65410752]
[1750894500678,1.739,2416.2,2415.9,0.7567]
[1750894500880,4.63614209,2416.2,2415.9,0.7567]
[1750894501275,1.739,2416.2,2415.9,0.7567]
[1750894501570,1.739,2416.2,2415.9,4.01955318]
[1750894502583,1.739,2416.2,2416.0,2.89726448]
[1750894503090,1.739,2416.2,2415.9,1.12212879]
[1750894503091,1.739,2416.2,2415.9,4.01953792]
[1750894503677,1.739,2416.2,2416.0,2.89732523]
[1750894503895,1.739,2416.2,2416.1,2.89723107]
[1750894504098,1.739,2416.2,2416.1,3.58889958]
[1750894504296,1.739,2416.2,2416.1,4.39099958]
[1750894504500,1.739,2416.2,2416.1,1.49376851]
[1750894504689,12.89671069,2416.6,2416.1,0.8021]
[1750894504887,12.89671069,2416.6,2416.1,3.69932529]
[1750894505094,1.738,2416.5,2416.1,3.69932529]
[1750894506196,1.738,2416.5,2416.2,2.89710097]
[1750894506399,1.738,2416.5,2416.3,2.8968714]
[1750894506900,12.89640447,2416.8,2416.3,3.55647934]
[1750894507088,1.738,2416.7,2416.3,0.65960794]
[1750894507407,10.0,2416.4,2416.3,0.65960794]
[1750894507577,12.89690325,2416.4,2416.1,0.8021]
[1750894508810,10.0,2416.4,2416.1,0.8021]
[1750894509890,10.0,2416.4,2416.3,0.2064]
[1750894510779,2.89687137,2416.4,2416.3,0.2064]
[1750894511307,10.0,2416.4,2416.3,0.2064]
[1750894511735,12.89669331,2416.6,2416.3,0.2064]
[1750894512283,10.0,2416.6,2416.3,0.2064]
[1750894512713,1.738,2416.7,2416.3,0.2064]
[1750894513429,10.0,2416.6,2416.3,0.2064]
[1750894516416,10.0,2416.6,2416.3,0.59695722]
[1750894516618,10.0,2416.6,2416.3,0.2064]
[1750894517318,12.89665795,2416.6,2416.3,0.2064]
[1750894517517,10.0,2416.6,2416.3,0.2064]
[1750894518794,1.738,2416.7,2416.4,0.7572]
[1750894519425,1.738,2416.7,2416.4,3.65406395]
[1750894519991,1.738,2416.7,2416.4,0.7572]
[1750894520191,10.0,2416.6,2416.4,0.7572]
[1750894522113,1.738,2416.7,2416.4,3.65399581]
[1750894522300,1.738,2416.7,2416.6,2.89663163]
[1750894522508,1.738,2416.7,2416.6,3.87633163]
[1750894523629,1.737,2417.1,2416.8,2.89632549]
[1750894524133,1.737,2417.1,2416.8,3.10272549]
[1750894524434,1.737,2417.2,2417.0,0.2064]
[1750894525314,1.737,2417.2,2417.0,3.10250718]
[1750894525626,1.737,2417.2,2417.1,2.89603243]
[1750894526426,1.737,2417.2,2417.0,0.88953536]
[1750894526922,1.737,2417.2,2417.0,0.2064]
[1750894528231,2.89615837,2417.0,2416.8,0.2064]
[1750894528726,2.89627208,2416.9,2416.8,0.2064]
[1750894529031,2.89619528,2417.0,2416.8,0.2064]
[1750894529252,2.89627208,2416.9,2416.8,0.2064]
[1750894530134,2.89621057,2417.0,2416.6,0.2064]
[1750894530295,0.2064,2417.1,2416.6,0.59478391]
[1750894530296,3.10248486,2417.1,2416.6,0.59478391]
[1750894530503,3.10248486,2417.1,2416.6,3.49141292]
[1750894530838,11.737,2417.2,2416.7,2.89647907]
[1750894531134,11.737,2417.2,2416.9,0.2064]
[1750894531306,11.737,2417.2,2416.9,0.59836606]
[1750894531506,11.737,2417.2,2416.9,3.49457938]
[1750894532536,11.737,2417.2,2417.0,2.89614777]
[1750894533036,11.737,2417.2,2416.9,3.49454896]
[1750894533536,1.737,2417.2,2416.9,0.59836606]
[1750894533713,11.737,2417.2,2416.9,0.59836606]
[1750894534038,11.737,2417.2,2416.9,0.2064]
[1750894534540,4.63291621,2417.2,2416.9,0.2064]
[1750894534708,11.737,2417.2,2416.9,0.2064]
[1750894534909,1.737,2417.2,2416.9,0.2064]
[1750894535322,11.737,2417.2,2416.9,0.2064]
[1750894535531,11.737,2417.2,2416.9,0.59836401]
[1750894536226,1.737,2417.2,2417.1,2.89603243]
[1750894536402,10.0162,2417.8,2417.1,0.9933]
[1750894536609,2.89549991,2417.6,2417.1,0.9933]
[1750894536910,10.0,2417.5,2417.2,0.59533942]
[1750894538744,2.89557565,2417.5,2417.2,0.59533942]
[1750894538913,2.89573092,2417.4,2417.2,0.59533942]
[1750894539256,2.89573092,2417.4,2417.2,0.2064]
[1750894539827,2.89579282,2417.3,2417.2,0.2064]
[1750894540030,2.89579282,2417.3,2416.9,1.18076401]
[1750894540031,1.735,2417.4,2416.9,0.7888]
[1750894540209,2.89611229,2417.1,2416.8,0.2064]
[1750894540411,7.69332491,2417.3,2416.8,0.2064]
[1750894540612,8.68110153,2417.3,2416.8,0.2064]
[1750894540942,2.896092,2417.1,2416.8,0.2064]
[1750894541315,2.89597274,2417.2,2416.8,0.2064]
[1750894541712,3.10226126,2417.3,2416.8,3.53033901]
[1750894542040,3.10226126,2417.3,2416.9,0.768]
[1750894542412,2.89593973,2417.2,2416.9,0.768]
[1750894542839,13.10224409,2417.3,2416.9,0.768]
[1750894543453,2.89592595,2417.2,2416.9,0.768]
[1750894544119,10.2064,2417.3,2416.9,0.768]
[1750894544322,0.2064,2417.3,2416.9,0.768]
[1750894544523,0.2064,2417.3,2416.9,1.15507902]
[1750894545037,0.2064,2417.3,2417.0,2.8961381]
[1750894545238,1.735,2417.4,2417.2,2.89591262]
[1750894545552,1.735,2417.4,2417.3,3.64689282]
[1750894545741,1.735,2417.4,2417.3,0.7511]
[1750894547224,10.2064,2417.7,2417.3,1.13645313]
[1750894547547,11.19497806,2417.7,2417.3,3.64685225]
[1750894547956,12.92997806,2417.7,2417.3,3.64685225]
[1750894548255,11.9414,2417.7,2417.3,3.64685225]
[1750894548471,11.9414,2417.7,2417.4,2.89559785]
[1750894548622,11.735,2417.7,2417.3,3.64683495]
[1750894548828,11.735,2417.7,2417.5,0.2064]
[1750894549056,15.61906348,2417.7,2417.5,0.2064]
[1750894549278,14.63031732,2417.7,2417.5,0.2064]
[1750894550178,11.735,2417.7,2417.5,0.2064]
[1750894550464,12.72417177,2417.7,2417.5,0.2064]
[1750894551146,15.61950041,2417.7,2417.5,0.2064]
[1750894551455,14.63032864,2417.7,2417.5,0.2064]
[1750894551857,11.735,2417.7,2417.5,0.2064]
[1750894553224,11.735,2417.7,2417.5,0.88128584]
[1750894553529,1.735,2417.7,2417.6,3.65483348]
[1750894553727,7.028313,2418.1,2417.8,2.89519397]
[1750894553728,1.953113,2418.1,2417.8,2.89519397]
[1750894553955,11.953113,2418.1,2417.9,2.89506384]
[1750894554130,1.953113,2418.1,2417.9,2.89506384]
[1750894554763,1.953113,2418.1,2418.0,0.2064]
[1750894556175,1.953113,2418.1,2417.6,0.8081]
[1750894556329,2.89519823,2417.8,2417.6,1.0145]
[1750894556528,2.89512446,2417.9,2417.6,1.0145]
[1750894556724,2.89512446,2417.9,2417.6,0.2064]
[1750894556958,2.89512446,2417.9,2416.9,2.20084441]
[1750894556959,2.89532006,2417.7,2417.4,0.8188]
[1750894557163,2.89524721,2417.8,2417.5,0.2064]
[1750894557328,0.2064,2417.9,2417.5,0.2064]
[1750894557529,0.2064,2417.9,2417.5,3.10188716]
[1750894557728,0.2064,2417.9,2417.5,3.78353226]
[1750894558565,3.10149774,2417.9,2417.5,0.8880451]
[1750894558754,2.89519478,2417.8,2417.5,0.8880451]
[1750894559358,3.10149338,2417.9,2417.5,0.8880451]
[1750894559735,0.2064,2417.9,2417.5,0.8880451]
[1750894559943,0.2064,2417.9,2417.6,0.46025042]
[1750894560142,0.2064,2417.9,2417.5,0.8880451]
[1750894560338,2.89519397,2417.8,2417.5,0.8880451]
[1750894560648,2.89555325,2417.5,2417.4,0.2064]
[1750894560862,2.89569339,2417.4,2417.2,0.2064]
[1750894561377,9.13472491,2417.6,2416.9,0.7637]
[1750894561523,0.2064,2417.5,2417.1,0.2064]
[1750894561729,2.89591262,2417.2,2417.1,0.2064]
[1750894562332,2.89607194,2417.1,2416.7,0.7709]
[1750894562565,2.89607194,2417.1,2416.8,0.2064]
[1750894563150,0.2064,2417.3,2416.8,0.2064]
[1750894563351,0.2064,2417.3,2416.8,3.10272894]
[1750894563574,0.2064,2417.3,2416.9,2.89616996]
[1750894563747,0.2064,2417.3,2416.8,3.10270316]
[1750894563748,0.2064,2417.3,2417.1,0.7735]
[1750894564303,4.63067776,2417.4,2417.1,0.7735]
[1750894564768,1.735,2417.4,2417.1,0.7735]
[1750894565134,4.6306811,2417.4,2417.1,0.7735]
[1750894565345,1.735,2417.4,2417.1,0.7735]
[1750894565764,4.63069039,2417.4,2417.1,0.7735]
[1750894566143,4.63069039,2417.4,2417.0,0.2064]
[1750894567246,1.735,2417.4,2417.0,3.10246478]
[1750894567452,1.735,2417.4,2417.1,2.89601564]
[1750894567868,11.735,2417.5,2417.3,0.8238]
[1750894568049,1.735,2417.5,2417.3,1.0302]
[1750894568250,10.0,2417.7,2417.4,2.89567303]
[1750894568449,10.0,2417.7,2417.3,3.92593392]
[1750894568672,10.0,2417.7,2417.5,0.2064]
[1750894570364,10.0,2417.7,2417.5,3.1018945]
[1750894571276,10.0,2417.7,2417.6,2.89543348]
[1750894571462,1.735,2417.8,2417.7,2.89531372]
[1750894571666,10.0,2417.8,2417.6,2.89537336]
[1750894571977,10.0,2417.8,2417.7,2.89531372]
[1750894573276,10.0,2417.8,2417.5,3.10191837]
[1750894573277,10.0,2417.8,2417.6,2.89537411]
[1750894574189,10.0,2417.8,2417.7,2.89531372]
[1750894574760,10.0,2417.8,2417.6,2.89537664]
[1750894575490,0.2064,2417.9,2417.6,2.89537664]